[Event "ChessKid Cup Div-III 2023"]
[Site "Online"]
[Date "2023.05.23"]
[Round "52.1"]
[White "Gledura, Benjamin"]
[Black "Santos Ruiz, Miguel"]
[Result "1/2-1/2"]
[ECO "D35"]
[WhiteElo "2644"]
[BlackElo "2590"]
[Annotator "TA"]
[PlyCount "88"]
[EventDate "2023.05.21"]
[EventType "k.o."]
[EventCountry "NET"]
[SourceTitle "playchess.com"]
[Source "ChessBase"]
[SourceQuality "1"]
[TimeControl "900+3"]

{[%evp 9,88,4,14,8,8,8,15,10,22,22,35,6,33,30,45,47,40,41,44,41,44,32,37,23,34,29,27,30,26,28,29,20,35,11,26,32,41,43,40,43,43,35,41,23,29,10,14,14,23,6,7,5,22,0,0,0,0,0,0,0,15,5,6,0,0,0,0,0,0,0,0,0,0,0,0,0,0,0,0,0,0]} 1. c4 {[%emt 0:00:05]} e6 {[%emt 0:00:11]} 2. Nc3 {[%emt 0:00:05]} d5 {[%emt 0:00:01]} 3. d4 {[%emt 0:00:01]} Nf6 {[%emt 0:00:01]} 4. cxd5 {[%emt 0:00:01]} exd5 {[%emt 0:00:00]} 5. Bf4 {[%emt 0:00:05]} Bd6 {[%emt 0:00:18]} 6. Bxd6 {[%emt 0:00:02] D35: Queen's Gambit Declined: Exchange Variation.} Qxd6 {[%emt 0:00:00]} 7. e3 {[%emt 0:00:01]} O-O {[%emt 0:01:07]} 8. Bd3 {[%emt 0:00:03]} Bg4 {[%emt 0:00:10]} 9. Qb3 {[%emt 0:00:20]} Nbd7 {[%emt 0:00:14] [#]} 10. Nge2 $146 {[%emt 0:00:28]} ({Reject} 10. Qxb7 Rab8 11. Qa6 Qxa6 12. Bxa6 Rxb2 $11) (10. h3 $5 {[%cal Rh3g4]} Bh5 11. Nge2 $11) ({Predecessor:} 10. h3 Be6 11. Nf3 c5 12. Qa3 Rfc8 13. O-O Qf8 14. dxc5 Nxc5 15. Ne2 Bd7 16. Nfd4 {½-½ Rapport,R (2763)-Wojtaszek,R (2686) Berlin FIDE GP 1 Pool-B 2022 (4)}) 10... c5 {[%emt 0:00:15] [#] And now ...c4 would win.} 11. Qa3 {[%emt 0:00:03]} Rfc8 {[%emt 0:00:27]} 12. O-O {[%emt 0:00:11]} Qf8 {[%emt 0:04:21]} 13. f3 {[%emt 0:01:29]} Be6 {[%emt 0:00:16]} 14. Nf4 {[%emt 0:00:17]} a6 {[%emt 0:00:51]} 15. dxc5 {[%emt 0:00:29]} Nxc5 {[%emt 0:00:42]} 16. Nce2 {[%emt 0:00:03]} Bd7 {[%emt 0:00:21]} 17. Nd4 {[%emt 0:00:59]} Re8 {[%emt 0:00:25]} 18. Rac1 {[%emt 0:00:15]} Rac8 {[%emt 0:00:04]} 19. Bb1 {[%emt 0:03:02]} Ne6 {[%emt 0:01:47]} 20. Qxf8+ {[%emt 0:00:03]} (20. Rxc8 {simplifies} Rxc8 21. Qxf8+ Kxf8 22. Nfe2) 20... Kxf8 {[%emt 0:00:02]} 21. Kf2 {[%emt 0:00:02]} Nxf4 {[%emt 0:02:04]} 22. exf4 {[%emt 0:00:00]} h5 {[%emt 0:00:18]} 23. Rcd1 {[%emt 0:00:14]} Rc4 {[%emt 0:00:11]} 24. Rd2 {[%emt 0:00:01]} Rec8 {[%emt 0:00:07]} 25. Rfd1 {[%emt 0:00:07]} Rc1 {[%emt 0:00:05]} 26. Bc2 {[%emt 0:00:52]} Rxd1 {[%emt 0:00:05]} 27. Rxd1 {[%emt 0:00:00]} Ke7 {[%emt 0:00:10]} 28. Bb3 {[%emt 0:00:02]} Kd6 {[%emt 0:00:02]} 29. g3 {[%emt 0:00:55]} a5 {[%emt 0:00:14] The position is equal.} 30. a3 {[%emt 0:00:07]} Rc5 {[%emt 0:00:05]} 31. Ke3 {[%emt 0:00:41]} Ng8 {[%emt 0:00:12]} 32. Ne2 {[%emt 0:00:58]} Ne7 {[%emt 0:00:03]} 33. Nc3 {[%emt 0:00:02] [#] aiming for Ne4+.} f5 {[%emt 0:00:23] Dodges Ne4+} 34. g4 {[%emt 0:00:08]} hxg4 {[%emt 0:00:21]} 35. fxg4 {[%emt 0:00:00]} Be6 {[%emt 0:00:06]} 36. Bc2 {[%emt 0:01:18]} Nc6 {[%emt 0:00:08] White must now prevent ...d4+.} 37. Bxf5 {[%emt 0:00:29] Hoping for Ne4+.} (37. gxf5 $5 d4+ $8 38. Kf3 $11) 37... d4+ {[%emt 0:00:23]} 38. Ke4 {[%emt 0:00:07]} Bb3 {[%emt 0:00:12] ...Bc2+ is the strong threat.} 39. Rd2 {[%emt 0:00:01] Prevents Bc2+. Kf3 would be deadly.} Ke7 {[%emt 0:00:05]} 40. Ne2 {[%emt 0:01:22]} Bd5+ {[%emt 0:00:06]} 41. Kd3 {[%emt 0:00:02]} Bc4+ {[%emt 0:00:05]} 42. Ke4 {[%emt 0:00:01]} Bd5+ {[%emt 0:00:01]} 43. Kd3 {[%emt 0:00:00]} Bc4+ {[%emt 0:00:01]} 44. Ke4 {[%emt 0:00:01]} Bd5+ {[%emt 0:00:00] Weighted Error Value: White=0.05 (flawless) /Black=0.04 (flawless)} 1/2-1/2

[Event "ChessKid Cup Div-III 2023"]
[Site "Online"]
[Date "2023.05.23"]
[Round "52.1"]
[White "Tari, Aryan"]
[Black "Raja Harshit"]
[Result "0-1"]
[ECO "A28"]
[WhiteElo "2642"]
[BlackElo "2515"]
[Annotator "TA"]
[PlyCount "100"]
[EventDate "2023.05.21"]
[EventType "k.o."]
[EventCountry "NET"]
[SourceTitle "playchess.com"]
[Source "ChessBase"]
[SourceQuality "1"]
[TimeControl "900+3"]

{[%evp 9,100,37,38,41,37,35,41,40,16,28,52,11,25,13,27,21,54,61,47,47,47,24,52,34,46,37,38,35,104,117,117,116,110,13,25,28,30,3,12,0,48,0,30,0,0,0,0,0,0,0,0,-43,0,0,0,-11,-11,-11,-11,-11,-14,-73,-52,-380,-353,-416,-418,-481,-479,-458,-451,-361,-218,-251,-185,-217,-220,-208,-60,-154,0,-4,-10,-139,-54,-64,0,-12840,-12842,-12842,-12842,-12842,-6041]} 1. c4 {[%emt 0:00:04]} Nf6 {[%emt 0:00:05]} 2. Nc3 {[%emt 0:00:03]} e5 {[%emt 0:00:04]} 3. Nf3 {[%emt 0:00:00]} Nc6 {[%emt 0:00:02]} 4. e3 {[%emt 0:00:01]} g6 {[%emt 0:00:32]} 5. d4 {[%emt 0:00:03]} exd4 {[%emt 0:00:01]} 6. exd4 {[%emt 0:00:03] A28: English Opening: Four Knights Variation.} d5 {[%emt 0:00:20]} 7. Bg5 {[%emt 0:00:14] And now cxd5 would win.} Be7 $1 {[%emt 0:00:20]} 8. Bxf6 {[%emt 0:02:42] White is slightly better.} Bxf6 {[%emt 0:00:00]} 9. cxd5 {[%emt 0:00:01]} Ne7 {[%emt 0:00:05]} (9... Qe7+ 10. Be2 Nb8 11. Rc1 $16) 10. Bb5+ {[%emt 0:00:24][%cal Bf1b5,Bb5d3,Bd3b1][%mdl 32] [#]} Kf8 $146 {[%emt 0:02:15]} ({Predecessor:} 10... Bd7 11. Qb3 O-O 12. O-O Bxb5 13. Qxb5 Rb8 14. Rfe1 a6 15. Qb3 Nf5 16. Rad1 Re8 {1-0 Yilmaz,M (2631)-Tanaka,T (2106) Titled Tuesday intern op 04th Jan blitz 2022 (1)}) 11. Qb3 {[%emt 0:01:08]} Kg7 {[%emt 0:01:04]} 12. O-O {[%emt 0:00:27]} Nf5 {[%emt 0:00:40]} 13. Rad1 {[%emt 0:00:49]} a6 {[%emt 0:00:14]} 14. Bd3 {[%emt 0:00:43]} Re8 {[%emt 0:01:52]} 15. Bb1 {[%emt 0:03:25]} Nd6 {[%emt 0:00:02]} 16. h3 {[%emt 0:00:06] Repels Bg4} b5 {[%emt 0:00:44]} 17. Rfe1 {[%emt 0:00:02]} Rxe1+ {[%emt 0:00:52]} 18. Rxe1 {[%emt 0:00:00]} Nf5 {[%emt 0:00:13]} (18... Bf5 $14) 19. Bxf5 $16 {[%emt 0:00:33]} Bxf5 {[%emt 0:00:03]} 20. Ne5 $1 {[%emt 0:00:01]} h5 {[%emt 0:00:42][%cal Bh7h5,Bh5h4][%mdl 32]} 21. Ne4 {[%emt 0:01:22]} (21. Ne2 $16) 21... Bxe4 $11 {[%emt 0:01:24]} 22. Rxe4 {[%emt 0:00:00]} Qd6 $1 {[%emt 0:00:01]} 23. Nc6 {[%emt 0:00:26]} h4 $1 {[%emt 0:00:03]} 24. a3 {[%emt 0:00:30]} Rh8 {[%emt 0:00:08]} 25. Ne5 {[%emt 0:00:51]} (25. Re5 $14) 25... Rd8 {[%emt 0:00:23]} 26. Qc3 {[%emt 0:00:17]} Qxd5 {[%emt 0:00:15]} 27. Qxc7 {[%emt 0:00:21]} Re8 {[%emt 0:01:41]} 28. f3 {[%emt 0:00:38]} Re7 {[%emt 0:00:46]} 29. Qc3 {[%emt 0:00:01]} Re6 {[%emt 0:00:19][%cal Be7e6,Be6d6,Bd6d1][%mdl 32]} 30. Qe3 {[%emt 0:00:20]} Rd6 {[%emt 0:00:39]} (30... Bd8 $5 {[%cal Rf7f5]} 31. Ng4 Bg5 $11) 31. Qf4 {[%emt 0:00:01]} Bd8 {[%emt 0:00:17][%cal Bf6d8,Bd8g5,Bg5c1,Bc1b2][%mdl 32]} 32. Ng4 {[%emt 0:00:46] White threatens Qh6+ and mate.} (32. Nxf7 $5 Rf6 $8 33. Qh6+ (33. Qxh4 $2 Rxf7 34. Qg3 Bb6 $19) (33. Qg5 Qxf7 34. Rxh4 Kg8 $17) 33... Kxf7 34. Qh8 $11 (34. Qxh4 Kg7 $17) (34. Rxh4 Re6 $17)) 32... Bg5 {[%emt 0:00:05] Prevents Qh6+} 33. Qe5+ {[%emt 0:00:01]} Qxe5 {[%emt 0:00:00]} 34. dxe5 {[%emt 0:00:00][%mdl 4096] Endgame KRB-KRN} (34. Nxe5 f5 35. Re2 Rxd4 $15) 34... Rd1+ {[%emt 0:00:06]} 35. Kh2 {[%emt 0:00:01]} (35. Kf2 $11) 35... Bc1 {[%emt 0:00:05]} 36. f4 $2 {[%emt 0:00:14][%mdl 8192]} (36. b4 $1 $15) 36... Bxb2 $19 {[%emt 0:00:17]} 37. e6 {[%emt 0:00:01]} fxe6 {[%emt 0:00:03]} (37... Bxa3 38. e7 Bxe7 39. Rxe7 $16) (37... Rd4 38. Rxd4 fxe6 39. Rd7+ Kg8 40. Ra7 $18) 38. Rxe6 {[%emt 0:00:00]} Bc1 {[%emt 0:00:02]} (38... Bxa3 $2 {loses.} 39. Nf2 Rd6 40. Re7+ Kf6 41. Rh7 $19) 39. Re7+ {[%emt 0:00:15]} Kf8 {[%emt 0:00:02]} 40. Re4 {[%emt 0:00:00]} Rf1 {[%emt 0:00:03]} 41. g3 {[%emt 0:00:01]} Rf3 {[%emt 0:00:03]} 42. gxh4 {[%emt 0:00:03]} Rxa3 {[%emt 0:00:09]} ({Inferior is} 42... Bxa3 43. Ne5 Rb3 44. Nxg6+ Kg7 45. Ne5 $11) ({Worse is} 42... Bxf4+ 43. Kg2 Rg3+ 44. Kf2 $17) 43. Ne5 {[%emt 0:00:06]} Ra4 {[%emt 0:00:01]} (43... Kg7 $19 44. Kg2 Kf6) 44. Nxg6+ $15 {[%emt 0:00:02] [#]} Kg7 {[%emt 0:00:02]} (44... Kf7 $1 $17 45. Re1 Bxf4+ 46. Nxf4 Rxf4) 45. Re6 $11 {[%emt 0:00:01]} b4 {[%emt 0:00:08]} 46. f5 {[%emt 0:00:01] [#]} (46. h5 $1 $11 {keeps the balance.}) 46... b3 {[%emt 0:00:00]} ({Better is} 46... Ra5 $1 $17 {Strongly threatening ...b3.} 47. h5 Rxf5 48. Rxa6 b3) 47. Rb6 $15 {[%emt 0:00:09]} b2 {[%emt 0:00:01]} (47... Ra3 $1 $15 48. h5 Bb2) 48. f6+ $2 {[%emt 0:00:02][%mdl 8192]} (48. h5 $11 Kh6 49. f6 Kxh5 50. f7) 48... Kxg6 $19 {[%emt 0:00:02] Black is clearly winning.} 49. h5+ {[%emt 0:00:01]} Kf7 {[%emt 0:00:00]} 50. h6 {[%emt 0:00:02]} Rh4 {[%emt 0:00:02] Weighted Error Value: White=0.35/Black=0.20 (precise)} (50... Bf4+ $142 51. Kg2 Be5) 0-1

[Event "ChessKid Cup Div-III 2023"]
[Site "Online"]
[Date "2023.05.23"]
[Round "52.1"]
[White "Chigaev, Maksim"]
[Black "Navara, David"]
[Result "1/2-1/2"]
[ECO "A28"]
[WhiteElo "2628"]
[BlackElo "2678"]
[Annotator "TA"]
[PlyCount "87"]
[EventDate "2023.05.21"]
[EventType "k.o."]
[EventCountry "NET"]
[SourceTitle "playchess.com"]
[Source "ChessBase"]
[SourceQuality "1"]
[TimeControl "900+3"]

{[%evp 18,87,0,0,12,6,16,0,0,0,8,16,14,-20,-16,-77,-72,-69,-66,-50,0,0,0,0,0,0,-17,-102,-96,-91,-92,-150,-112,-127,-108,-127,0,0,0,0,0,0,0,0,0,0,10,0,0,0,0,0,0,0,0,-393,0,0,0,0,0,0,0,0,0,0,0,0,0,0,0,0]} 1. c4 {[%emt 0:00:14]} e5 {[%emt 0:00:09]} 2. Nc3 {[%emt 0:00:03]} Nf6 {[%emt 0:00:01]} 3. Nf3 {[%emt 0:00:02]} Nc6 {[%emt 0:00:01]} 4. a3 {[%emt 0:00:13]} d5 {[%emt 0:00:13]} 5. cxd5 {[%emt 0:00:02]} Nxd5 {[%emt 0:00:00]} 6. Qc2 {[%emt 0:00:00]} Be7 {[%emt 0:00:16]} 7. e3 {[%emt 0:00:35]} O-O {[%emt 0:00:01]} 8. Be2 {[%emt 0:00:01]} Be6 {[%emt 0:00:14]} 9. O-O {[%emt 0:00:03]} f5 {[%emt 0:00:01]} 10. d3 {[%emt 0:00:05]} Kh8 {[%emt 0:00:35] A28: English Opening: Four Knights Variation.} 11. Nxd5 {[%emt 0:00:10] [#]} Qxd5 $146 {[%emt 0:00:00]} ({Predecessor:} 11... Bxd5 12. b4 e4 13. dxe4 Bxe4 14. Qb3 Bd5 15. Qc2 Be4 16. Qb3 Bd5 17. Qc2 {½-½ Grischuk,A (2792)-Safarli,E (2649) Wch Rapid Dubai 2014 (4)}) 12. b4 {[%emt 0:00:05]} a5 {[%emt 0:01:51]} 13. e4 {[%emt 0:01:44]} Qb3 {[%emt 0:00:31]} 14. Qxb3 {[%emt 0:00:05]} Bxb3 {[%emt 0:00:00]} 15. b5 {[%emt 0:00:00]} fxe4 {[%emt 0:02:57][%mdl 64] [#] Discovered Attack} 16. dxe4 {[%emt 0:00:42]} (16. bxc6 $11 {keeps the balance.} exf3 17. Bxf3) 16... Nd4 $17 {[%emt 0:00:01]} 17. Nxd4 {[%emt 0:00:00]} exd4 {[%emt 0:00:00]} 18. Bb2 {[%emt 0:00:00] White is weak on the dark squares} Bc5 {[%emt 0:00:02]} (18... d3 $1 $15 19. Bd1 (19. Bxd3 Rad8 $17) 19... Be6) 19. Bd3 $11 {[%emt 0:00:26]} a4 {[%emt 0:00:16]} 20. Rac1 {[%emt 0:00:21]} Bb6 {[%emt 0:00:10]} 21. f4 {[%emt 0:00:03]} Rac8 {[%emt 0:00:01]} 22. f5 {[%emt 0:00:47]} (22. g3 $11) 22... c5 $17 {[%emt 0:00:19]} 23. bxc6 {[%emt 0:00:09]} bxc6 {[%emt 0:00:00][%cal Bb7c6,Bc6c5][%mdl 32]} 24. Kf2 {[%emt 0:00:22]} ({White should play} 24. e5) 24... c5 {[%emt 0:00:11] aiming for ...c4.} 25. Bc4 {[%emt 0:00:02]} Rfe8 {[%emt 0:01:37]} 26. Kf3 {[%emt 0:00:13]} Ba5 {[%emt 0:00:15]} (26... h5 $17 {[%cal Og7g6]} 27. g3 Rb8) 27. Bxb3 $1 $11 {[%emt 0:00:19]} axb3 {[%emt 0:00:00]} 28. Rc4 $1 {[%emt 0:00:01]} Kg8 {[%emt 0:00:27]} 29. Rfc1 {[%emt 0:00:15][%cal Ob2d4]} Bd2 {[%emt 0:00:45]} 30. Rd1 {[%emt 0:00:21]} Ba5 $36 {[%emt 0:00:44][%mdl 2048] Black is pushing.} 31. g4 {[%emt 0:00:21]} Red8 {[%emt 0:00:38]} 32. e5 {[%emt 0:00:41]} (32. Rd3 $2 Bc3 33. Bc1 (33. Bxc3 $2 dxc3 34. Re3 Rd1 $19) 33... b2 34. Bxb2 Bxb2 $19) 32... Bc3 {[%emt 0:00:02]} 33. Rb1 {[%emt 0:00:10]} (33. Bxc3 $2 dxc3 34. Rxd8+ Rxd8 35. Rxc3 b2 $19) 33... Bxb2 {[%emt 0:00:07]} 34. Rxb2 {[%emt 0:00:01][%mdl 4096] Endgame KRR-KRR} d3 {[%emt 0:00:00]} 35. Ke3 {[%emt 0:00:08][%cal Oe5e6]} (35. Rxb3 $2 d2 36. Rb1 d1=Q+ $19) 35... Rd5 {[%emt 0:00:15]} 36. e6 {[%emt 0:01:15][%mdl 8192] [#]} (36. Rxb3 $2 d2 37. Rb1 d1=Q $19) (36. Kd2 $11 {and White stays safe.}) 36... Rcd8 $2 {[%emt 0:00:02]} ({Better is} 36... Re5+ $1 $19 37. Kf4 (37. Kxd3 $2 {leads to mate.} Rd8+) 37... Re1) 37. Kd2 {[%emt 0:01:19] The position is equal.} (37. Rxb3 $2 {loses.} d2 38. Rb1 Re5+ 39. Kf2 (39. Kf4 $2 Re1 $19) 39... d1=Q $19) 37... Re5 {[%emt 0:00:24]} 38. Rxb3 {[%emt 0:00:44]} Re2+ {[%emt 0:00:00]} 39. Kd1 {[%emt 0:00:00][%cal Ob3d3] Black must now prevent Rxd3!} Rxh2 {[%emt 0:00:00] ...d2 would be deadly.} 40. e7 {[%emt 0:00:57]} Rh1+ {[%emt 0:00:03]} 41. Kd2 {[%emt 0:00:02]} Rh2+ {[%emt 0:00:00]} 42. Kd1 {[%emt 0:00:00]} Rh1+ {[%emt 0:00:01]} 43. Kd2 {[%emt 0:00:01]} Rh2+ {[%emt 0:00:00]} 44. Kd1 {[%emt 0:00:00] Weighted Error Value: White=0.26 (precise) /Black=0.20 (precise)} 1/2-1/2

[Event "ChessKid Cup Div-III 2023"]
[Site "Online"]
[Date "2023.05.23"]
[Round "52.1"]
[White "Bok, Benjamin"]
[Black "Vaibhav, Suri"]
[Result "1-0"]
[ECO "A13"]
[WhiteElo "2607"]
[BlackElo "2595"]
[Annotator "TA"]
[PlyCount "97"]
[EventDate "2023.05.21"]
[EventType "k.o."]
[EventCountry "NET"]
[SourceTitle "playchess.com"]
[Source "ChessBase"]
[SourceQuality "1"]
[TimeControl "900+3"]

{[%evp 15,97,35,33,34,25,25,28,34,40,22,43,51,56,34,29,35,34,33,77,70,62,57,78,72,75,89,122,117,179,172,203,203,137,163,156,164,149,164,162,158,189,124,123,54,202,174,473,413,548,525,427,410,597,602,685,680,664,581,751,751,751,744,1523,1072,1806,1576,4794,4110,29973,29975,29973,29961,29988,29977,29982,29983,29983,29984,29984,29985,29992,29987,29987,29988]} 1. c4 {[%emt 0:00:03]} e6 {[%emt 0:00:06]} 2. g3 {[%emt 0:00:03]} d5 {[%emt 0:00:01]} 3. Bg2 {[%emt 0:00:02]} Nf6 {[%emt 0:00:08]} 4. Nf3 {[%emt 0:00:01]} dxc4 {[%emt 0:00:54]} 5. Qa4+ {[%emt 0:00:02]} Nbd7 {[%emt 0:00:13]} 6. Qxc4 {[%emt 0:00:02]} c5 {[%emt 0:00:01]} 7. d3 {[%emt 0:00:02] 7.Qb3 is vanishing.} a6 {[%emt 0:01:52]} 8. Qb3 {[%emt 0:00:02]} Ra7 {[%emt 0:00:45]} 9. O-O {[%emt 0:00:09] A13: English Opening: 1...e6.} b6 {[%emt 0:00:01]} 10. a4 {[%emt 0:00:04]} Bb7 {[%emt 0:00:02]} 11. Na3 {[%emt 0:00:10] White has an edge.} Be7 {[%emt 0:00:07]} 12. Nc4 {[%emt 0:00:08]} O-O {[%emt 0:00:04]} 13. e4 {[%emt 0:00:21]} Bc6 {[%emt 0:02:31]} 14. h3 {[%emt 0:00:08] [#]} h6 $146 {[%emt 0:00:38]} ({Predecessor:} 14... Rb7 15. Be3 Rb8 16. Nfe5 Nxe5 17. Nxe5 Ba8 18. f4 Qc7 19. Qc3 Nd7 20. Ng4 b5 21. axb5 axb5 {1-0 Demina,J (2365)-Markov,S (2115) YUG-chT (Women) 1993 (5)}) 15. Be3 {[%emt 0:00:04][%cal Bc1e3,Be3d4,Bd4b6][%mdl 32]} Rb7 {[%emt 0:00:49]} 16. Rfd1 {[%emt 0:00:15]} Qa8 {[%emt 0:00:47]} 17. Nfe5 {[%emt 0:01:07]} Nxe5 {[%emt 0:00:02]} 18. Nxe5 {[%emt 0:00:00]} Be8 {[%emt 0:00:01]} 19. d4 {[%emt 0:00:01] White is much more active. The black rooks are badly placed.} cxd4 {[%emt 0:00:58]} 20. Bxd4 {[%emt 0:00:00]} b5 {[%emt 0:00:01]} 21. a5 {[%emt 0:00:01]} Rc7 {[%emt 0:00:01]} (21... Bd7 $16 {was necessary.}) 22. Bb6 $18 {[%emt 0:01:37]} Rc8 {[%emt 0:00:08] [#]} 23. Ng6 $1 {[%emt 0:02:40][%mdl 576] Deflection} fxg6 {[%emt 0:00:20]} 24. Qxe6+ {[%emt 0:00:02]} Bf7 {[%emt 0:01:44]} (24... Rf7 $2 25. e5 Rc6 26. Bxc6 (26. exf6 Rxe6 27. Bxa8 Rfxf6 $18) 26... Qxc6 27. Qxc6 Bxc6 28. exf6 Rxf6 29. Bd8) 25. Qxe7 {[%emt 0:00:01]} Rfe8 {[%emt 0:00:00]} 26. Qa3 {[%emt 0:01:33][%cal Oe4e5]} Nxe4 {[%emt 0:00:05]} 27. Rd7 {[%emt 0:03:30] Hoping for Re1.} Qc6 {[%emt 0:00:44]} 28. Rad1 {[%emt 0:00:04]} (28. Qd3 $18 {Strongly threatening Rd4.} Qc2 29. Re1 Qxd3 30. Rxd3) 28... Qc2 $16 {[%emt 0:00:10]} 29. Qf3 {[%emt 0:00:40]} (29. Qd3 $16) 29... Nf6 {[%emt 0:00:20] A mistake that costs the game.} (29... Be6 $14) 30. Ra7 $40 {[%emt 0:00:11][%mdl 128] White has strong attack.} (30. Rxf7 Kxf7 31. Rd6 Kg8 $11) 30... Bc4 $2 {[%emt 0:00:47]} (30... Qxb2 31. Bd4 (31. Rxa6 Bb3 $14) 31... Qb3) 31. Kh2 {[%emt 0:00:34][%cal Of3b7] Qb7! would be deadly.} (31. Rxa6 $2 Be2 $19) 31... Rf8 {[%emt 0:00:48] [#]} 32. Qb7 $1 {[%emt 0:00:17][%csl Ga7][%cal Rb7g7][%mdl 64] Double Attack} Bf7 {[%emt 0:00:01]} 33. Re1 {[%emt 0:00:27]} Rb8 {[%emt 0:00:28]} (33... Qc4 $142 34. Re7 (34. Rxa6 Nd5 $18) 34... h5 35. Rxa6 h4) 34. Qxa6 $18 {[%emt 0:00:11]} Qxb2 {[%emt 0:00:01]} 35. Ree7 {[%emt 0:00:07][%cal Oe7f7]} Rbe8 {[%emt 0:00:20]} 36. Qb7 {[%emt 0:00:57][%cal Re7f7]} Qb3 {[%emt 0:00:02]} 37. a6 {[%emt 0:00:20] aiming for Rxe8.} Rxe7 {[%emt 0:00:01]} 38. Qxe7 {[%emt 0:00:00]} Nd5 {[%emt 0:00:01]} 39. Qd6 {[%emt 0:00:35][%cal Oa7f7]} Nxb6 {[%emt 0:00:36]} 40. Qxb6 {[%emt 0:00:00]} b4 {[%emt 0:00:10]} 41. Rc7 {[%emt 0:00:10] White threatens a7 and mate.} Bd5 {[%emt 0:00:03]} 42. Qd4 {[%emt 0:00:09][%csl Gc7][%cal Rd4g7] White mates.} Bf7 {[%emt 0:00:02]} 43. a7 {[%emt 0:00:04]} Qa3 {[%emt 0:00:04] [#]} 44. Rxf7 $1 {[%emt 0:00:08][%mdl 576] Remove Defender, Promotion} Kxf7 {[%emt 0:00:01]} (44... Rxf7 45. a8=Q+) 45. Bd5+ {[%emt 0:00:01][%mdl 64] Deflection} Ke7 {[%emt 0:00:02]} 46. Qe5+ {[%emt 0:00:02]} Kd7 {[%emt 0:00:01]} 47. Qe6+ {[%emt 0:00:01]} Kc7 {[%emt 0:00:04]} 48. Qc6+ {[%emt 0:00:02]} ({Worse is} 48. Qxg6 Rxf2+ 49. Kg1 Qxa7 50. Qc6+ Kd8 51. Qd6+ Ke8 52. Qe6+ (52. Bc6+ Kf7 $11) 52... Kf8 53. Qg8+ Ke7 54. Qe6+ Kf8 55. Qg8+ Ke7 56. Qe6+ Kf8 $11) 48... Kd8 {[%emt 0:00:00]} 49. a8=Q+ {[%emt 0:00:02] An entertaining game by Bok.   Weighted Error Value: White=0.15 (very precise) /Black=0.48} ({Weaker is} 49. a8=B Rxf2+ 50. Bg2 Rxg2+ 51. Qxg2 Qc3 $18) 1-0